fUSD/lending_fUSD_20260413
["ID","MTS","AMOUNT","RATE_DAILY","PERIOD"]
[420397332,1776081049866,-2597.03,0.0002643,2]
[420397333,1776081049894,-2822.26,0.0002643,2]
[420397334,1776081049904,-3497.99,0.0002643,2]
[420397335,1776081049928,-883.65,0.00026484,2]
[420397336,1776081049938,-7597.1,0.00026497,2]
[420397337,1776081049948,-150.0,0.000265,14]
[420397338,1776081049971,-243.36860088,0.0002656,2]
[420397339,1776081049980,-151.0,0.00026573,2]
[420397340,1776081049991,-151.0,0.00026573,2]
[420397341,1776081050010,-22603.37821932,0.00026573,2]
[420397342,1776081050020,-167.09212902,0.00026574,2]
[420397343,1776081050031,-300.0,0.00026653,10]
[420397344,1776081050046,-152.034593,0.00026654,2]
[420397345,1776081050057,-151.0,0.00026654,2]
[420397346,1776081050067,-9685.186407,0.00026654,2]
[420397347,1776081050077,-9685.186407,0.00026654,2]
[420397348,1776081050091,-9685.186407,0.00026654,2]
[420397349,1776081050103,-9685.186415,0.00026654,2]
[420397350,1776081050114,-410665.890158,0.00026654,2]
[420397351,1776081050124,-238.432,0.000267,2]
[420397352,1776081050139,-162.0,0.0002672,3]
[420397353,1776081050150,-162.0,0.0002672,3]
[420397354,1776081050160,-201.98,0.00026754,2]
[420397355,1776081050178,-883.65,0.00026758,2]
[420397356,1776081050190,-216.73,0.00026781,2]
[420397357,1776081050204,-2000.0,0.000268,2]
[420397358,1776081050215,-173.16,0.00026801,2]
[420397359,1776081050224,-218.348,0.0002693,15]
[420397360,1776081050236,-2812.783,0.0002693,15]
[420397361,1776081050246,-558.07,0.00026942,2]
[420397362,1776081050258,-569.71919602,0.00027,2]
[420397363,1776081050268,-650.02631694,0.00027,2]
[420397364,1776081050279,-500.0,0.00027,7]
[420397365,1776081050289,-500.0,0.00027,7]
[420397366,1776081050302,-500.0,0.00027,7]
[420397367,1776081050313,-2000.0,0.00027,2]
[420397368,1776081050323,-500.0,0.00027,7]
[420397369,1776081050333,-500.0,0.00027,7]
[420397370,1776081050346,-22603.37821932,0.00027015,2]
[420397371,1776081050359,-883.75,0.00027032,2]
[420397372,1776081050370,-5625.3420497,0.00027061,2]
[420397373,1776081050380,-508.0,0.00027137,2]
[420397374,1776081050398,-198.51322665,0.0002716,2]
[420397375,1776081050412,-839.92,0.00027177,2]
[420397376,1776081050424,-2351.0,0.00027187,2]
[420397377,1776081050438,-350.0,0.00027193,5]
[420397378,1776081050449,-2007.0,0.000272,2]
[420397379,1776081050460,-167.09212902,0.00027237,2]
[420397380,1776081050476,-150.0,0.00027369,2]
[420397381,1776081050489,-173.9437519,0.00027369,2]
[420397382,1776081050500,-258.5,0.0002737,30]
[420397383,1776081050512,-226.4,0.0002737,30]
[420397384,1776081050523,-367.4,0.0002737,30]
[420397385,1776081050555,-253.23479087,0.00027397,7]
[420397386,1776081050565,-1000.0,0.00027397,20]
[420397387,1776081050575,-154.955137,0.00027397,2]
[420397388,1776081050605,-154.955137,0.00027397,2]
[420397389,1776081050615,-154.955137,0.00027397,2]
[420397390,1776081050626,-154.955137,0.00027397,2]
[420397391,1776081050638,-154.955137,0.00027397,2]
[420397392,1776081050649,-154.955137,0.00027397,2]
[420397393,1776081050659,-154.955137,0.00027397,2]
[420397394,1776081050672,-154.955137,0.00027397,2]
[420397395,1776081050682,-154.955137,0.00027397,2]
[420397396,1776081050694,-154.955137,0.00027397,2]
[420397397,1776081050712,-154.955137,0.00027397,2]
[420397398,1776081050722,-154.955137,0.00027397,2]
[420397399,1776081050732,-154.955137,0.00027397,2]
[420397400,1776081050743,-154.955137,0.00027397,2]
[420397401,1776081050759,-154.955137,0.00027397,2]
[420397402,1776081050774,-154.955137,0.00027397,2]
[420397403,1776081050785,-1297.24,0.00027397,15]
[420397404,1776081050795,-342.0,0.00027454,2]
[420397405,1776081050805,-22603.37821932,0.00027458,2]
[420397406,1776081050820,-261.5888,0.000275,2]
[420397407,1776081050832,-206.46958173,0.00027616,30]
[420397408,1776081050841,-500.0,0.0002772,2]
[420397409,1776081050855,-500.0,0.0002772,2]
[420397410,1776081050869,-500.0,0.0002772,2]
[420397411,1776081050879,-1255.1834724,0.0002774,2]
[420397412,1776081050889,-854.9048739,0.00027828,2]
[420397413,1776081050900,-1000.0,0.00027847,2]
[420397414,1776081050915,-1023.04767181,0.00027853,30]
[420397415,1776081050925,-150.0,0.00027874,2]
[420397416,1776081050934,-206.46958173,0.0002789,30]
[420397417,1776081050944,-500.0,0.000279,30]
[420397418,1776081050964,-167.09212902,0.000279,2]
[420397419,1776081050974,-22603.37821932,0.000279,2]
[420397420,1776081050994,-1481.11560873,0.000279,2]
[420397421,1776081051007,-16041.98876846,0.000279,2]
[420397422,1776081051017,-168.0,0.00027924,7]
[420397423,1776081051054,-201.98,0.0002797,2]
[420397424,1776081051064,-204.52013133,0.0002799,2]
[420397425,1776081051093,-168.0,0.00027993,2]
[420397426,1776081051105,-300.0,0.00027999,10]
[420397427,1776081051128,-498.466993,0.00027999,20]
[420397428,1776081051148,-6186496.91492993,0.00028,2]
[420397429,1776081051179,-9000000.0,0.00028,2]
[420397430,1776081051191,-600000.0,0.00028,2]
[420397431,1776081051202,-175.88,0.00028,7]
[420397432,1776081051226,-2466.84,0.00028,7]
[420397433,1776081051244,-44060.13,0.00028,7]
[420397434,1776081051259,-50024.80191611,0.00028,2]
[420397435,1776081051275,-3286.71536891,0.00028,2]
[420397436,1776081051287,-151.0,0.00028,7]
[420397437,1776081051299,-1061.62739363,0.00028,2]
[420397438,1776081051319,-200.0,0.00028,10]
[420397439,1776081051332,-500.0,0.00028,2]
[420397440,1776081051360,-500.0,0.00028,2]
[420397441,1776081051370,-500.0,0.00028,2]
[420397442,1776081051393,-154.955137,0.00028,7]
[420397443,1776081051403,-154.955137,0.00028,7]
[420397444,1776081051412,-154.955137,0.00028,7]
[420397445,1776081051439,-154.955139,0.00028,7]
[420397446,1776081051449,-3043.57233467,0.00028,2]
[420397447,1776081051458,-301.97118334,0.00028,2]
[420397448,1776081051472,-7597.1,0.00028028,2]
[420397449,1776081051486,-342.0,0.00028105,2]
[420397450,1776081051495,-343.0,0.00028117,2]
[420397451,1776081051504,-168.0,0.00028147,2]
[420397452,1776081051519,-478.75,0.000282,30]
[420397453,1776081051530,-172.05798478,0.00028219,30]
[420397454,1776081051539,-342.0,0.00028224,2]
[420397455,1776081051549,-168.0,0.00028286,2]
[420397456,1776081051573,-286.9947,0.000283,2]
[420397457,1776081051584,-342.0,0.00028362,7]
[420397458,1776081051595,-168.0,0.00028369,2]
[420397459,1776081051614,-343.0,0.00028388,2]
[420397460,1776081051633,-4200.0,0.00028463,7]
[420397461,1776081051645,-342.0,0.00028574,2]
[420397462,1776081051655,-941.0,0.000287,2]
[420397463,1776081051670,-617.0,0.000287,2]
[420397464,1776081051682,-505.0,0.0002874,2]
[420397465,1776081051707,-168.0,0.00028776,2]
[420397466,1776081051718,-700.0,0.00028778,2]
[420397467,1776081051735,-210.0,0.0002882,30]
[420397468,1776081051745,-3991.4641568,0.00028829,2]
[420397469,1776081051762,-35074.35345283,0.000289,3]
[420397470,1776081051773,-168.0,0.00028942,2]
[420397471,1776081051785,-168.0,0.00029052,2]
[420397472,1776081051797,-314.868,0.000291,2]
[420397473,1776081051813,-150.0,0.00029124,2]
[420397474,1776081051831,-1000.0,0.00029151,2]
[420397475,1776081051841,-508.0,0.0002917,4]
[420397476,1776081051853,-2000.0,0.0002917,2]
[420397477,1776081051866,-201.98,0.00029186,2]
[420397478,1776081051880,-225.85,0.0002919,2]
[420397479,1776081051892,-519.22160712,0.00029199,18]
[420397480,1776081051902,-300.0,0.00029199,10]
[420397481,1776081051915,-44060.13,0.000292,7]
[420397482,1776081051926,-155.97,0.0002921,2]
[420397483,1776081051941,-1000.0,0.00029259,2]
[420397484,1776081051950,-300.0,0.00029288,10]
[420397485,1776081051974,-410665.890158,0.00029289,2]
[420397486,1776081051983,-2466.84,0.000293,7]
[420397487,1776081051993,-552.41,0.00029342,2]
[420397488,1776081052015,-2472.0,0.00029342,2]
[420397489,1776081052025,-5432.057,0.00029342,2]
[420397490,1776081052035,-439.72611938,0.00029367,2]
[420397491,1776081052065,-168.0,0.00029459,2]
[420397492,1776081052076,-1000.0,0.00029459,2]
[420397493,1776081052091,-168.0,0.00029498,2]
[420397494,1776081052107,-200.0,0.00029498,2]
[420397495,1776081052120,-200.0,0.00029498,2]
[420397496,1776081052131,-200.0,0.00029498,2]
[420397497,1776081052147,-200.0,0.00029498,2]
[420397498,1776081052177,-200.0,0.00029498,2]
[420397499,1776081052188,-200.0,0.00029498,2]
[420397500,1776081052204,-200.0,0.00029498,2]
[420397501,1776081052224,-200.0,0.00029498,2]
[420397502,1776081052242,-321.0,0.00029498,2]
[420397503,1776081052257,-518.87,0.00029527,30]
[420397504,1776081052275,-450.0,0.00029527,60]
[420397505,1776081052287,-450.0,0.00029527,60]
[420397506,1776081052299,-351.0,0.00029527,60]
[420397507,1776081052314,-605.58,0.00029534,2]
[420397508,1776081052332,-605.58,0.00029534,2]
[420397509,1776081052348,-605.58,0.00029534,2]
[420397510,1776081052358,-605.58,0.00029534,2]
[420397511,1776081052371,-605.58,0.00029534,2]
[420397512,1776081052429,-7597.1,0.00029559,2]
[420397513,1776081052462,-216.73,0.000296,2]
[420397514,1776081052478,-3292.0,0.00029655,2]
[420397515,1776081052511,-1000.0,0.00029706,2]
[420397516,1776081052530,-1000.0,0.00029727,2]
[420397517,1776081052555,-168.0,0.00029737,2]
[420397518,1776081052597,-150.0,0.00029737,2]
[420397519,1776081052615,-150.0,0.00029737,2]
[420397520,1776081052662,-150.0,0.00029737,2]
[420397521,1776081052672,-150.0,0.00029737,2]
[420397522,1776081052692,-150.0,0.00029737,2]
[420397523,1776081052707,-150.0,0.00029737,2]
[420397524,1776081052718,-150.0,0.00029737,2]
[420397525,1776081052730,-265.0,0.00029737,2]
[420397526,1776081052755,-152.0,0.00029768,3]
[420397527,1776081052765,-238.0,0.00029768,60]
[420397528,1776081052791,-1000.0,0.00029814,2]
[420397529,1776081052828,-1000.0,0.00029883,2]
[420397530,1776081052839,-1000.0,0.000299,30]
[420397531,1776081052863,-345.4484,0.000299,2]
[420397532,1776081052883,-416.0,0.00029961,2]
[420397533,1776081052896,-150.0,0.00029961,2]
[420397534,1776081052908,-150.0,0.00029961,2]
[420397535,1776081052921,-254.0,0.00029961,2]
[420397536,1776081052940,-366.0,0.00029971,2]
[420397537,1776081052952,-150.0,0.00029971,2]
[420397538,1776081052965,-272.0,0.00029971,2]
[420397539,1776081052995,-229.80341601,0.0003,90]
[420397540,1776081053005,-10000.0,0.0003,10]
[420397541,1776081053015,-8000.0,0.0003,3]
[420397542,1776081053059,-1007.43442936,0.0003,2]
[420397543,1776081053072,-600.00943747,0.0003,30]
[420397544,1776081053082,-8917.009999,0.0003,2]
[420397545,1776081053098,-1000.0,0.0003,14]
[420397546,1776081053112,-1000.0,0.00030046,14]
[420397547,1776081053122,-1000.0,0.00030091,14]
[420397548,1776081053138,-1000.0,0.00030107,2]
[420397549,1776081053148,-169.8,0.0003011,30]
[420397550,1776081053160,-161.7,0.0003011,30]
[420397551,1776081053170,-229.3,0.0003011,30]
[420397552,1776081053185,-187.2,0.0003011,30]
[420397553,1776081053195,-225.9,0.0003011,30]
[420397554,1776081053206,-174.5,0.0003011,30]
[420397555,1776081053215,-210.36842105,0.0003011,30]
[420397556,1776081053228,-2285.5,0.0003011,30]
[420397557,1776081053238,-2285.5,0.0003011,30]
[420397558,1776081053250,-1628.90430849,0.0003011,30]
[420397559,1776081053265,-1628.90430848,0.0003011,30]
[420397560,1776081053278,-759.10000001,0.0003011,30]
[420397561,1776081053290,-155.97,0.00030117,2]
[420397562,1776081053304,-258.89,0.0003013,30]
[420397563,1776081053316,-1000.0,0.0003013,2]
[420397564,1776081053331,-150.20478762,0.00030136,2]
[420397565,1776081053348,-200.0,0.00030136,2]
[420397566,1776081053361,-20272.59950896,0.00030137,2]
[420397567,1776081053380,-379.93,0.00030137,15]
[420397568,1776081053407,-150.2827154,0.00030137,5]
[420397569,1776081053418,-4532.0,0.00030137,120]
[420397570,1776081053432,-642.0,0.00030137,120]
[420397571,1776081053450,-189.0,0.00030137,120]
[420397572,1776081053461,-150.0,0.00030137,120]
[420397573,1776081053473,-210.0,0.00030137,120]
[420397574,1776081053489,-150.0,0.00030137,60]
[420397575,1776081053499,-180.0,0.00030137,60]
[420397576,1776081053510,-217.0,0.00030137,120]
[420397577,1776081053521,-442.0,0.00030137,120]
[420397578,1776081053541,-1784.54,0.00030137,7]
[420397579,1776081053551,-500.0,0.00030137,120]
[420397580,1776081053574,-612.07,0.00030137,120]
[420397581,1776081053585,-204.42,0.00030137,120]
[420397582,1776081053597,-2000.0,0.00030137,2]
[420397583,1776081053619,-200.0,0.00030137,2]
[420397584,1776081053630,-500.0,0.00030137,120]
[420397585,1776081053642,-200.0,0.00030137,2]
[420397586,1776081053682,-150.0,0.00030137,7]
[420397587,1776081053693,-1009.56803665,0.00030137,14]
[420397588,1776081053709,-1169.57859967,0.00030137,2]
[420397589,1776081053726,-1169.57859967,0.00030137,2]
[420397590,1776081053736,-1169.57859967,0.00030137,2]
[420397591,1776081053748,-533.11974122,0.0003021,57]
[420397592,1776081053767,-174.0,0.0003021,60]
[420397593,1776081053777,-200.0,0.0003021,60]
[420397594,1776081053788,-347.0,0.0003021,60]
[420397595,1776081053804,-499.56,0.00030226,2]
[420397596,1776081053818,-201.98,0.00030402,2]
[420397597,1776081053829,-1329.97914519,0.00030438,2]
[420397598,1776081053844,-200.0,0.00030438,2]
[420397599,1776081053861,-1099.2654887,0.0003048,3]
[420397600,1776081053872,-300.0,0.00030499,10]
[420397601,1776081053883,-44060.13,0.000305,7]
[420397602,1776081054181,-313.64,0.000305,2]
[420397603,1776081054191,-502.0,0.00030521,2]
[420397604,1776081054202,-378.9988,0.000307,2]
[420397605,1776081054214,-1574.0,0.00030728,3]
[420397606,1776081054225,-779.85,0.00030731,2]
[420397607,1776081054236,-287.0,0.00030815,60]
[420397608,1776081054245,-327.0,0.00030815,60]
[420397609,1776081054257,-400.0,0.00030822,120]
[420397610,1776081054269,-400.0,0.00030822,120]
[420397611,1776081054279,-318.0,0.00030822,120]
[420397612,1776081054288,-1850.0,0.00030822,120]
[420397613,1776081054302,-1850.0,0.00030822,120]
[420397614,1776081054313,-1720.0,0.00030822,120]
[420397615,1776081054323,-850.0,0.00030822,120]
[420397616,1776081054333,-850.0,0.00030822,120]
[420397617,1776081054354,-817.0,0.00030822,120]
[420397618,1776081054364,-200.0,0.00030822,60]
[420397619,1776081054391,-290.0,0.00030822,60]
[420397620,1776081054425,-350.0,0.00030822,120]
[420397621,1776081054466,-350.0,0.00030822,120]
[420397622,1776081054483,-208.0,0.00030822,120]
[420397623,1776081054492,-450.0,0.00030822,120]
[420397624,1776081054527,-450.0,0.00030822,120]
[420397625,1776081054537,-389.0,0.00030822,120]
[420397626,1776081054551,-150.0,0.00030822,120]
[420397627,1776081054570,-185.0,0.00030822,120]
[420397628,1776081054582,-238.0,0.00030822,120]
[420397629,1776081054595,-154.0,0.00030822,120]
[420397630,1776081054616,-217.0,0.00030822,60]
[420397631,1776081054626,-261.0,0.00030822,60]
[420397632,1776081054637,-371.0,0.00030822,60]
[420397633,1776081054662,-500.0,0.00030822,120]
[420397634,1776081054673,-204.42,0.00030822,120]
[420397635,1776081054683,-210.0,0.0003084,30]
[420397636,1776081054701,-2466.84,0.000309,7]
[420397637,1776081054721,-235.0,0.00030959,120]
[420397638,1776081054732,-298.0,0.00030959,120]
[420397639,1776081054742,-301.0,0.00030959,120]
[420397640,1776081054759,-612.07,0.00030959,120]
[420397641,1776081054771,-2750.0,0.00031,60]
[420397642,1776081054781,-2750.0,0.00031,60]
[420397643,1776081054797,-2708.0,0.00031,60]
[420397644,1776081054813,-250.0,0.00031,60]
[420397645,1776081054822,-250.0,0.00031,60]
[420397646,1776081054837,-240.0,0.00031,60]
[420397647,1776081054850,-500.0,0.00031,60]
[420397648,1776081054861,-500.0,0.00031,60]
[420397649,1776081054880,-376.0,0.00031,60]
[420397650,1776081054893,-700.0,0.00031,60]
[420397651,1776081054903,-700.0,0.00031,60]
[420397652,1776081054926,-552.0,0.00031,60]
[420397653,1776081054940,-200.0,0.00031,60]
[420397654,1776081054955,-308.0,0.00031,60]
[420397655,1776081054970,-220.0,0.00031,60]
[420397656,1776081055002,-234.0,0.00031,60]
[420397657,1776081055024,-162.0,0.00031048,3]
[420397658,1776081055040,-7597.1,0.00031089,2]
[420397659,1776081055055,-216.0,0.00031112,120]
[420397660,1776081055065,-185.0,0.00031112,120]
[420397661,1776081055079,-231.0,0.00031114,60]
[420397662,1776081055099,-1300.0,0.00031114,60]
[420397663,1776081055109,-1300.0,0.00031114,60]
[420397664,1776081055121,-1212.0,0.00031114,60]
[420397665,1776081055138,-1574.0,0.00031129,3]
[420397666,1776081055148,-508.0,0.00031203,6]
[420397667,1776081055158,-4018.34191015,0.00031311,2]
[420397668,1776081055170,-600.0,0.00031312,60]
[420397669,1776081055180,-600.0,0.00031312,60]
[420397670,1776081055191,-493.0,0.00031312,60]
[420397671,1776081055201,-234.0,0.00031312,60]
[420397672,1776081055212,-298.0,0.00031312,60]
[420397673,1776081055222,-150.0,0.00031312,60]
[420397674,1776081055234,-177.0,0.00031312,60]
[420397675,1776081055246,-170.0,0.00031312,60]
[420397676,1776081055258,-160.0,0.00031312,60]
[420397677,1776081055268,-165.0,0.00031312,60]
[420397678,1776081055281,-558.07,0.0003138,2]
[420397679,1776081055303,-3991.4641568,0.00031423,2]
[420397680,1776081055313,-415.8077,0.000315,2]
[420397681,1776081055334,-155.97,0.00031506,2]
[420397682,1776081055345,-261.28976784,0.000316,30]
[420397683,1776081055355,-201.98,0.00031618,2]
[420397684,1776081055375,-13616.5307,0.00031644,2]
[420397685,1776081055387,-1899.82,0.00031669,30]
[420397686,1776081055397,-500.0,0.00031726,120]
[420397687,1776081055430,-204.42,0.00031726,120]
[420397688,1776081055440,-198.0,0.00031726,60]
[420397689,1776081055459,-215.0,0.00031726,120]
[420397690,1776081055472,-300.0,0.00031726,60]
[420397691,1776081055484,-300.0,0.00031726,60]
[420397692,1776081055499,-273.0,0.00031726,60]
[420397693,1776081055509,-200.0,0.00031726,120]
[420397694,1776081055535,-200.0,0.00031726,120]
[420397695,1776081055545,-176.0,0.00031726,120]
[420397696,1776081055568,-269.0,0.00031726,60]
[420397697,1776081055581,-178.0,0.00031726,120]
[420397698,1776081055597,-166.0,0.00031726,60]
[420397699,1776081055613,-180.0,0.00031726,120]
[420397700,1776081055626,-150.0,0.00031726,60]
[420397701,1776081055637,-175.0,0.00031726,60]
[420397702,1776081055655,-150.0,0.00031726,120]
[420397703,1776081055684,-202.0,0.00031726,120]
[420397704,1776081055695,-200.0,0.00031726,60]
[420397705,1776081055705,-200.0,0.00031726,60]
[420397706,1776081055725,-195.0,0.00031726,60]
[420397707,1776081055737,-300.0,0.00031726,60]
[420397708,1776081055751,-300.0,0.00031726,60]
[420397709,1776081055765,-193.0,0.00031726,60]
[420397710,1776081055779,-253.0,0.00031726,120]
[420397711,1776081055801,-209.0,0.00031726,60]
[420397712,1776081055811,-150.0,0.00031726,120]
[420397713,1776081055824,-173.0,0.00031726,120]
[420397714,1776081055836,-173.0,0.00031726,120]
[420397715,1776081055850,-174.0,0.00031726,60]
[420397716,1776081055864,-179.0,0.00031726,60]
[420397717,1776081055874,-187.0,0.00031726,60]
[420397718,1776081055892,-213.0,0.00031726,60]
[420397719,1776081055902,-171.0,0.00031726,60]
[420397720,1776081055916,-150.0,0.00031726,60]
[420397721,1776081055926,-209.0,0.00031726,60]
[420397722,1776081055941,-1600.0,0.00031842,120]
[420397723,1776081055950,-150.318793,0.00031879,2]
[420397724,1776081055963,-300.0,0.00031899,10]
[420397725,1776081055976,-44060.13,0.000319,7]
[420397726,1776081055986,-300.0,0.00031923,10]
[420397727,1776081055996,-410665.890158,0.00031924,2]
[420397728,1776081056017,-260.31262146,0.00032,10]
[420397729,1776081056028,-36789.30186387,0.00032,7]
[420397730,1776081056037,-1229.68,0.00032069,2]
[420397731,1776081056047,-2000.0,0.00032087,2]
[420397732,1776081056061,-500.0,0.00032136,120]
[420397733,1776081056071,-186.0,0.00032159,120]
[420397734,1776081056081,-237.0,0.00032159,120]
[420397735,1776081056091,-456.1915,0.000323,2]
[420397736,1776081056100,-835.0,0.000323,120]
[420397737,1776081056110,-835.0,0.000323,120]
[420397738,1776081056119,-835.0,0.000323,120]
[420397739,1776081056129,-835.0,0.000323,120]
[420397740,1776081056139,-835.0,0.000323,120]
[420397741,1776081056149,-835.0,0.000323,120]
[420397742,1776081056159,-835.0,0.000323,120]
[420397743,1776081056169,-835.0,0.000323,120]
[420397744,1776081056179,-835.0,0.000323,120]
[420397745,1776081056190,-468.0,0.000323,120]
[420397746,1776081056202,-194.0,0.00032304,120]
[420397747,1776081056213,-2472.0,0.00032342,2]
[420397748,1776081056224,-4609.0,0.00032346,3]
[420397749,1776081056233,-2466.84,0.000324,7]
[420397750,1776081056243,-152.0,0.00032407,4]
[420397751,1776081056253,-254.0,0.00032493,120]
[420397752,1776081056264,-189.0,0.00032493,120]
[420397753,1776081056273,-500.0,0.00032493,120]
[420397754,1776081056283,-204.42,0.00032493,120]
[420397755,1776081056293,-400.0,0.000325,7]
[420397756,1776081056306,-150.0,0.0003254,7]
[420397757,1776081056316,-150.0,0.00032548,7]
[420397758,1776081056326,-7597.1,0.0003262,2]
[420397759,1776081056338,-380.87,0.000328,60]
[420397760,1776081056348,-2066.4,0.00032822,120]
[420397761,1776081056358,-1558.8,0.00032822,120]
[420397762,1776081056368,-1558.8,0.00032822,120]
[420397763,1776081056379,-1528.2,0.00032822,120]
[420397764,1776081056388,-1528.2,0.00032822,120]
[420397765,1776081056398,-1845.9,0.00032822,120]
[420397766,1776081056410,-1808.1,0.00032822,120]
[420397767,1776081056420,-1455.3,0.00032822,120]
[420397768,1776081056431,-1455.3,0.00032822,120]
[420397769,1776081056442,-2033.1,0.00032822,120]
[420397770,1776081056455,-2033.1,0.00032822,120]
[420397771,1776081056469,-1570.5,0.00032822,120]
[420397772,1776081056480,-1570.5,0.00032822,120]
[420397773,1776081056491,-1434.35245306,0.00032822,120]
[420397774,1776081056515,-1434.35245306,0.00032822,120]
[420397775,1776081056526,-201.98,0.00032834,2]
[420397776,1776081056536,-1879.65,0.00032849,120]
[420397777,1776081056555,-1879.65,0.00032849,120]
[420397778,1776081056570,-2202.75,0.00032849,120]
[420397779,1776081056589,-2202.75,0.00032849,120]
[420397780,1776081056601,-210.0,0.0003286,30]
[420397781,1776081056618,-420.92150829,0.00032876,2]
[420397782,1776081056647,-420.62365237,0.00032876,2]
[420397783,1776081056658,-474.55126598,0.00032876,2]
[420397784,1776081056668,-441.19691367,0.00032876,2]
[420397785,1776081056681,-405.52896278,0.00032876,2]
[420397786,1776081056692,-397.59344152,0.00032876,2]
[420397787,1776081056706,-500.0,0.00032876,2]
[420397788,1776081056720,-500.0,0.00032876,2]
[420397789,1776081056734,-500.0,0.00032876,2]
[420397790,1776081056748,-500.0,0.00032876,2]
[420397791,1776081056759,-500.0,0.00032876,2]
[420397792,1776081056774,-500.0,0.00032876,2]
[420397793,1776081056796,-500.0,0.00032876,2]
[420397794,1776081056806,-500.0,0.00032876,2]
[420397795,1776081056842,-575.32381854,0.00032876,2]
[420397796,1776081056859,-500.0,0.00032876,2]
[420397797,1776081056888,-274.10472092,0.00032876,2]
[420397798,1776081056901,-387.23298775,0.00032876,2]
[420397799,1776081056928,-500.0,0.00032876,2]
[420397800,1776081056938,-500.0,0.00032876,2]
[420397801,1776081056952,-500.0,0.00032876,2]
[420397802,1776081056970,-500.0,0.00032876,2]
[420397803,1776081056979,-350.0,0.00032876,2]
[420397804,1776081056989,-367.46167583,0.00032876,2]
[420397805,1776081056999,-350.0,0.00032876,2]
[420397806,1776081057013,-500.0,0.00032876,2]
[420397807,1776081057023,-500.0,0.00032876,2]
[420397808,1776081057033,-418.39236417,0.00032876,2]
[420397809,1776081057043,-586.51556589,0.00032876,2]
[420397810,1776081057056,-500.0,0.00032876,2]
[420397811,1776081057067,-500.0,0.00032876,2]
[420397812,1776081057078,-244.37046245,0.00032876,2]
[420397813,1776081057088,-173.51421861,0.00032876,2]
[420397814,1776081057100,-500.0,0.00032876,2]
[420397815,1776081057111,-207.0,0.00032877,15]
[420397816,1776081057124,-500.0,0.00032877,30]
[420397817,1776081057134,-500.0,0.00032877,30]
[420397818,1776081057161,-500.0,0.00032877,30]
[420397819,1776081057178,-500.0,0.00032877,30]
[420397820,1776081057187,-500.0,0.00032877,30]
[420397821,1776081057207,-803.0,0.00032877,30]
[420397822,1776081057218,-168.57245298,0.00032933,30]
[420397823,1776081057227,-2730.0,0.00032933,30]
[420397824,1776081057261,-2712.0,0.00032933,30]
[420397825,1776081057271,-1263.0,0.00032969,30]
[420397826,1776081057288,-161.0,0.00032969,30]
[420397827,1776081057308,-1915.04,0.00033,120]
[420397828,1776081057318,-205.03,0.00033,120]
[420397829,1776081057338,-222.77,0.00033,120]
[420397830,1776081057365,-200.83,0.00033,30]
[420397831,1776081057376,-3001.10776603,0.00033,30]